fUST/lending_fUST_20250827
["ID","MTS","AMOUNT","RATE_DAILY","PERIOD"]
[381577957,1756289442630,-480.0,0.00022364,2]
[381577960,1756289442640,-589.41,0.00022364,2]
[381577962,1756289442650,-559.85,0.00022364,2]
[381577964,1756289442660,-480.0,0.00022365,2]
[381577966,1756289442669,-480.0,0.00022365,2]
[381577968,1756289442679,-480.0,0.00022365,2]
[381577970,1756289442689,-480.0,0.00022365,2]
[381577972,1756289442700,-480.0,0.00022365,2]
[381577974,1756289442710,-480.0,0.00022365,2]
[381577976,1756289442719,-480.0,0.00022365,2]
[381577978,1756289442729,-480.0,0.00022365,2]
[381577980,1756289442740,-480.0,0.00022365,2]
[381577982,1756289442749,-480.0,0.00022365,2]
[381577984,1756289442759,-480.0,0.00022365,2]
[381577986,1756289442769,-480.0,0.00022365,2]
[381577988,1756289442778,-480.0,0.00022365,2]
[381577991,1756289442789,-480.0,0.00022365,2]
[381577993,1756289442798,-480.0,0.00022365,2]
[381577995,1756289442809,-480.0,0.00022365,2]
[381577997,1756289442818,-480.0,0.00022365,2]
[381577999,1756289442828,-480.0,0.00022365,2]
[381578001,1756289442838,-480.0,0.00022365,2]
[381578003,1756289442847,-480.0,0.00022365,2]
[381578005,1756289442857,-480.0,0.00022365,2]
[381578008,1756289442866,-889.28,0.00022365,2]
[381578010,1756289442876,-480.0,0.00022365,2]
[381578012,1756289442885,-480.0,0.00022365,2]
[381578014,1756289442895,-480.0,0.00022365,2]
[381578016,1756289442905,-480.0,0.00022365,2]
[381578018,1756289442915,-2423.54,0.00022365,2]
[381578020,1756289442927,-480.0,0.00022365,2]
[381578022,1756289442937,-480.0,0.00022365,2]
[381578024,1756289442947,-480.0,0.00022365,2]
[381578027,1756289442958,-1010.26,0.00022365,2]
[381578029,1756289442967,-815.03,0.00022365,2]
[381578032,1756289442977,-1044.63,0.00022365,2]
[381578035,1756289442988,-480.0,0.00022365,2]
[381578037,1756289442999,-480.0,0.00022365,2]
[381578039,1756289443009,-480.0,0.00022365,2]
[381578041,1756289443019,-480.0,0.00022365,2]
[381578043,1756289443029,-480.0,0.00022365,2]
[381578045,1756289443039,-730.74,0.00022365,2]
[381578047,1756289443049,-742.5,0.00022365,2]
[381578049,1756289443061,-591.85,0.00022365,2]
[381578051,1756289443075,-480.0,0.00022365,2]
[381578053,1756289443085,-480.0,0.00022365,2]
[381578055,1756289443095,-480.0,0.00022365,2]
[381578057,1756289443105,-480.0,0.00022366,2]
[381578059,1756289443115,-821.76,0.00022366,2]
[381578061,1756289443125,-480.0,0.00022366,2]
[381578063,1756289443137,-480.0,0.00022366,2]
[381578066,1756289443148,-480.0,0.00022366,2]
[381578068,1756289443159,-480.0,0.00022366,2]
[381578070,1756289443169,-480.0,0.00022366,2]
[381578072,1756289443179,-480.0,0.00022366,2]
[381578074,1756289443189,-480.0,0.00022366,2]
[381578076,1756289443199,-480.0,0.00022366,2]
[381578078,1756289443209,-480.0,0.00022366,2]
[381578080,1756289443219,-480.0,0.00022366,2]
[381578082,1756289443228,-480.0,0.00022366,2]
[381578084,1756289443239,-480.0,0.00022366,2]
[381578086,1756289443249,-521.83298579,0.00022366,2]
[381578088,1756289443259,-480.0,0.00022366,2]
[381578090,1756289443269,-480.0,0.00022366,2]
[381578092,1756289443279,-480.0,0.00022366,2]
[381578094,1756289443289,-480.0,0.00022366,2]
[381578096,1756289443298,-480.0,0.00022366,2]
[381578099,1756289443310,-678.6,0.00022366,2]
[381578101,1756289443320,-983.64,0.00022366,2]
[381578103,1756289443330,-877.75,0.00022366,2]
[381578105,1756289443342,-480.0,0.00022366,2]
[381578107,1756289443352,-522.84428528,0.00022366,2]
[381578109,1756289443362,-480.0,0.00022366,2]
[381578111,1756289443372,-480.0,0.00022366,2]
[381578113,1756289443386,-480.0,0.00022366,2]
[381578115,1756289443396,-480.0,0.00022366,2]
[381578117,1756289443406,-480.0,0.00022366,2]
[381578119,1756289443416,-480.0,0.00022366,2]
[381578122,1756289443426,-480.0,0.00022366,2]
[381578125,1756289443435,-480.0,0.00022366,2]
[381578128,1756289443445,-480.0,0.00022366,2]
[381578130,1756289443455,-480.0,0.00022366,2]
[381578132,1756289443465,-480.0,0.00022366,2]
[381578135,1756289443475,-480.0,0.00022366,2]
[381578138,1756289443485,-480.0,0.00022366,2]
[381578141,1756289443496,-480.0,0.00022366,2]
[381578144,1756289443506,-569.38,0.00022366,2]
[381578147,1756289443521,-480.0,0.00022366,2]
[381578149,1756289443531,-481.43,0.00022366,2]
[381578152,1756289443541,-480.0,0.00022366,2]
[381578176,1756289443771,-480.0,0.00022366,2]
[381578178,1756289443781,-480.0,0.00022366,2]
[381578180,1756289443791,-540.61,0.00022366,2]
[381578182,1756289443801,-480.0,0.00022366,2]
[381578183,1756289443810,-480.0,0.00022366,2]
[381578185,1756289443820,-480.0,0.00022366,2]
[381578187,1756289443829,-480.0,0.00022366,2]
[381578189,1756289443838,-480.0,0.00022366,2]
[381578191,1756289443848,-480.0,0.00022366,2]
[381578193,1756289443858,-480.0,0.00022366,2]
[381578195,1756289443868,-480.0,0.00022366,2]
[381578197,1756289443878,-480.0,0.00022366,2]
[381578199,1756289443887,-824.02,0.00022366,2]
[381578201,1756289443897,-543.91,0.00022366,2]
[381578203,1756289443906,-480.0,0.00022366,2]
[381578205,1756289443916,-480.0,0.00022366,2]
[381578207,1756289443925,-480.0,0.00022366,2]
[381578209,1756289443934,-480.0,0.00022366,2]
[381578211,1756289443944,-324.34212447,0.00022366,2]
[381578213,1756289443953,-480.0,0.00022366,2]
[381578215,1756289443962,-480.0,0.00022366,2]
[381578217,1756289443972,-480.0,0.00022366,2]
[381578219,1756289443981,-632.67,0.00022366,2]
[381578221,1756289443991,-480.0,0.00022366,2]
[381578223,1756289444000,-480.0,0.00022366,2]
[381578225,1756289444010,-480.0,0.00022366,2]
[381578227,1756289444019,-480.0,0.00022366,2]
[381578229,1756289444029,-480.0,0.00022366,2]
[381578231,1756289444039,-480.0,0.00022366,2]
[381578233,1756289444048,-480.0,0.00022366,2]
[381578235,1756289444059,-480.0,0.00022366,2]
[381578237,1756289444070,-480.0,0.00022366,2]
[381578239,1756289444081,-641.67,0.00022366,2]
[381578241,1756289444090,-555.18,0.00022367,2]
[381578243,1756289444099,-480.0,0.00022367,2]
[381578245,1756289444110,-480.0,0.00022367,2]
[381578248,1756289444120,-1798.27,0.00022367,2]
[381578250,1756289444130,-919.9,0.00022368,2]
[381578251,1756289444139,-480.0,0.00022368,2]
[381578254,1756289444151,-1565.55,0.00022368,2]
[381578256,1756289444161,-1487.63,0.00022368,2]
[381578257,1756289444171,-3564.79,0.00022368,2]
[381578259,1756289444181,-1678.79,0.00022368,2]
[381578262,1756289444194,-480.0,0.00022368,2]
[381578264,1756289444204,-677.24,0.00022368,2]
[381578266,1756289444214,-3001.08,0.00022368,2]
[381578268,1756289444223,-2123.55,0.00022368,2]
[381578270,1756289444234,-570.64,0.00022369,2]
[381578272,1756289444244,-480.0,0.00022369,2]
[381578274,1756289444256,-480.0,0.00022369,2]
[381578275,1756289444265,-480.0,0.00022369,2]
[381578278,1756289444275,-480.0,0.00022369,2]
[381578280,1756289444285,-699.87,0.00022369,2]
[381578282,1756289444295,-589.43,0.00022369,2]
[381578283,1756289444304,-480.0,0.00022369,2]
[381578285,1756289444314,-480.0,0.00022369,2]
[381578287,1756289444323,-480.0,0.00022369,2]
[381578289,1756289444333,-480.0,0.00022369,2]
[381578291,1756289444342,-480.0,0.00022369,2]
[381578293,1756289444352,-480.0,0.00022369,2]
[381578295,1756289444361,-480.0,0.00022369,2]
[381578297,1756289444370,-480.0,0.00022369,2]
[381578299,1756289444380,-480.0,0.00022369,2]
[381578301,1756289444389,-480.0,0.00022369,2]
[381578303,1756289444399,-480.0,0.00022369,2]
[381578305,1756289444409,-1296.08,0.00022369,2]
[381578308,1756289444419,-480.0,0.00022369,2]
[381578310,1756289444428,-480.0,0.00022369,2]
[381578312,1756289444438,-998.74,0.00022369,2]
[381578314,1756289444448,-480.0,0.00022369,2]
[381578316,1756289444457,-480.0,0.00022369,2]
[381578318,1756289444467,-480.0,0.00022369,2]
[381578320,1756289444476,-1110.68,0.00022369,2]
[381578322,1756289444485,-480.0,0.00022369,2]
[381578324,1756289444495,-480.0,0.00022369,2]
[381578326,1756289444505,-480.0,0.00022369,2]
[381578328,1756289444514,-660.23,0.00022369,2]
[381578330,1756289444523,-480.0,0.00022369,2]
[381578332,1756289444533,-480.0,0.00022369,2]
[381578334,1756289444542,-480.0,0.00022369,2]
[381578336,1756289444552,-480.0,0.00022369,2]
[381578338,1756289444562,-480.0,0.00022369,2]
[381578340,1756289444571,-760.63,0.00022369,2]
[381578342,1756289444580,-524.94,0.00022369,2]
[381578344,1756289444596,-480.0,0.00022369,2]
[381578346,1756289444607,-581.06,0.00022369,2]
[381578348,1756289444616,-703.2,0.00022369,2]
[381578350,1756289444627,-541.56,0.00022369,2]
[381578352,1756289444637,-480.0,0.00022369,2]
[381578354,1756289444646,-3842.02,0.00022369,2]
[381578356,1756289444656,-480.0,0.00022369,2]
[381578358,1756289444665,-506.07,0.00022369,2]
[381578360,1756289444675,-480.0,0.00022369,2]
[381578362,1756289444684,-855.47,0.00022369,2]
[381578364,1756289444694,-552.43,0.00022369,2]
[381578366,1756289444704,-480.0,0.00022369,2]
[381578368,1756289444714,-676.34,0.00022369,2]
[381578370,1756289444724,-997.67,0.00022369,2]
[381578372,1756289444733,-500.0,0.00022369,2]
[381578374,1756289444743,-480.0,0.00022369,2]
[381578376,1756289444753,-480.0,0.00022369,2]
[381578378,1756289444763,-1905.17,0.00022369,2]
[381578380,1756289444774,-732.81,0.00022369,2]
[381578382,1756289444783,-480.0,0.00022369,2]
[381578384,1756289444793,-485.54,0.00022369,2]
[381578386,1756289444803,-522.71,0.00022369,2]
[381578388,1756289444812,-1210.7,0.00022369,2]
[381578390,1756289444822,-616.37,0.00022369,2]
[381578392,1756289444831,-487.65,0.00022369,2]
[381578394,1756289444840,-480.0,0.0002237,2]
[381578396,1756289444850,-969.77,0.0002237,2]
[381578397,1756289444860,-480.0,0.0002237,2]
[381578399,1756289444869,-480.0,0.0002237,2]
[381578401,1756289444878,-480.0,0.0002237,2]
[381578403,1756289444888,-480.0,0.0002237,2]
[381578405,1756289444898,-531.26,0.0002237,2]
[381578407,1756289444908,-480.0,0.0002237,2]
[381578409,1756289444918,-480.0,0.0002237,2]
[381578412,1756289444928,-480.0,0.0002237,2]
[381578414,1756289444942,-576.98,0.0002237,2]
[381578416,1756289444952,-609.12,0.0002237,2]
[381578418,1756289444962,-480.0,0.0002237,2]
[381578420,1756289444971,-480.0,0.0002237,2]
[381578422,1756289444981,-480.0,0.0002237,2]
[381578424,1756289444991,-480.0,0.0002237,2]
[381578426,1756289445000,-480.0,0.0002237,2]
[381578428,1756289445010,-480.0,0.0002237,2]
[381578430,1756289445020,-480.0,0.0002237,2]
[381578432,1756289445029,-480.0,0.0002237,2]
[381578434,1756289445038,-480.0,0.0002237,2]
[381578436,1756289445048,-480.0,0.0002237,2]
[381578438,1756289445059,-480.0,0.0002237,2]
[381578440,1756289445071,-615.06,0.0002237,2]
[381578442,1756289445081,-480.0,0.0002237,2]
[381578444,1756289445091,-811.56,0.0002237,2]
[381578446,1756289445101,-480.0,0.0002237,2]
[381578448,1756289445111,-480.0,0.0002237,2]
[381578450,1756289445120,-739.22,0.0002237,2]
[381578452,1756289445129,-480.0,0.0002237,2]
[381578454,1756289445139,-480.0,0.0002237,2]
[381578456,1756289445151,-480.0,0.0002237,2]
[381578458,1756289445161,-480.0,0.0002237,2]
[381578460,1756289445171,-480.0,0.0002237,2]
[381578462,1756289445181,-480.0,0.0002237,2]
[381578464,1756289445191,-480.0,0.0002237,2]
[381578466,1756289445201,-773.72,0.0002237,2]
[381578468,1756289445210,-480.0,0.0002237,2]
[381578470,1756289445220,-480.0,0.0002237,2]
[381578472,1756289445229,-480.0,0.0002237,2]
[381578474,1756289445240,-480.0,0.0002237,2]
[381578476,1756289445249,-480.0,0.0002237,2]
[381578478,1756289445259,-480.0,0.0002237,2]
[381578480,1756289445268,-480.0,0.0002237,2]
[381578482,1756289445278,-519.3,0.0002237,2]
[381578484,1756289445288,-480.0,0.0002237,2]
[381578486,1756289445297,-480.0,0.0002237,2]
[381578488,1756289445308,-480.0,0.0002237,2]
[381578490,1756289445317,-480.0,0.0002237,2]
[381578492,1756289445327,-480.0,0.0002237,2]
[381578494,1756289445338,-480.0,0.0002237,2]
[381578496,1756289445352,-569.32,0.0002237,2]
[381578498,1756289445363,-480.0,0.0002237,2]
[381578500,1756289445373,-480.0,0.0002237,2]
[381578502,1756289445385,-480.0,0.0002237,2]
[381578504,1756289445395,-480.0,0.0002237,2]
[381578506,1756289445406,-480.0,0.0002237,2]
[381578508,1756289445415,-480.0,0.0002237,2]
[381578510,1756289445425,-480.0,0.0002237,2]
[381578512,1756289445435,-480.0,0.0002237,2]
[381578514,1756289445445,-480.0,0.0002237,2]
[381578516,1756289445454,-402.08037265,0.0002237,2]
[381578518,1756289445463,-480.0,0.0002237,2]
[381578520,1756289445473,-480.0,0.0002237,2]
[381578522,1756289445485,-480.0,0.0002237,2]
[381578524,1756289445495,-480.0,0.0002237,2]
[381578526,1756289445505,-521.63,0.0002237,2]
[381578528,1756289445514,-480.0,0.0002237,2]
[381578531,1756289445524,-480.0,0.0002237,2]
[381578533,1756289445534,-575.26,0.0002237,2]
[381578535,1756289445543,-480.0,0.0002237,2]
[381578537,1756289445553,-480.0,0.0002237,2]
[381578539,1756289445562,-480.0,0.0002237,2]
[381578541,1756289445572,-778.94,0.0002237,2]
[381578542,1756289445581,-873.99,0.0002237,2]
[381578544,1756289445591,-464.82623605,0.0002237,2]
[381578547,1756289445600,-837.99,0.0002237,2]
[381578548,1756289445610,-480.0,0.0002237,2]
[381578550,1756289445619,-480.0,0.0002237,2]
[381578553,1756289445629,-480.0,0.0002237,2]
[381578555,1756289445638,-494.87,0.0002237,2]
[381578557,1756289445648,-678.91,0.0002237,2]
[381578559,1756289445657,-480.0,0.0002237,2]
[381578561,1756289445668,-600.0,0.0002237,2]
[381578563,1756289445677,-480.0,0.0002237,2]
[381578565,1756289445688,-508.08,0.0002237,2]
[381578566,1756289445697,-480.0,0.0002237,2]
[381578568,1756289445707,-484.67,0.0002237,2]
[381578570,1756289445716,-480.0,0.0002237,2]
[381578572,1756289445727,-480.0,0.0002237,2]
[381578574,1756289445736,-480.0,0.0002237,2]
[381578576,1756289445746,-480.0,0.0002237,2]
[381578578,1756289445756,-539.91,0.0002237,2]
[381578580,1756289445765,-480.0,0.0002237,2]
[381578582,1756289445775,-480.0,0.0002237,2]
[381578584,1756289445785,-480.0,0.0002237,2]
[381578586,1756289445794,-480.0,0.0002237,2]
[381578587,1756289445807,-613.6,0.0002237,2]
[381578588,1756289445816,-480.0,0.0002237,2]
[381578589,1756289445825,-925.94,0.0002237,2]
[381578590,1756289445834,-537.77,0.0002237,2]
[381578591,1756289445843,-533.76,0.0002237,2]
[381578592,1756289445852,-562.98,0.0002237,2]
[381578593,1756289445863,-480.0,0.0002237,2]
[381578594,1756289445873,-480.0,0.0002237,2]
[381578595,1756289445882,-480.0,0.0002237,2]
[381578596,1756289445891,-536.26,0.0002237,2]
[381578597,1756289445901,-480.0,0.0002237,2]
[381578598,1756289445910,-480.0,0.0002237,2]
[381578599,1756289445920,-480.0,0.0002237,2]
[381578600,1756289445929,-480.0,0.0002237,2]
[381578601,1756289445938,-480.0,0.0002237,2]
[381578602,1756289445947,-480.0,0.0002237,2]
[381578603,1756289445957,-480.0,0.0002237,2]
[381578604,1756289445967,-480.0,0.0002237,2]
[381578605,1756289445976,-480.0,0.0002237,2]
[381578606,1756289445985,-480.0,0.0002237,2]
[381578607,1756289445995,-480.0,0.0002237,2]
[381578608,1756289446004,-592.44,0.0002237,2]
[381578609,1756289446013,-592.79,0.0002237,2]
[381578610,1756289446022,-575.25,0.0002237,2]
[381578611,1756289446032,-480.0,0.0002237,2]
[381578612,1756289446041,-582.79,0.0002237,2]
[381578613,1756289446051,-480.0,0.0002237,2]
[381578614,1756289446059,-480.0,0.0002237,2]
[381578615,1756289446073,-594.5,0.0002237,2]
[381578616,1756289446082,-480.0,0.0002237,2]
[381578624,1756289446144,-602.33,0.0002237,2]
[381578626,1756289446155,-215.28365206,0.00022373,2]
[381578628,1756289446164,-500.0,0.00022373,2]
[381578630,1756289446173,-502.27128288,0.00022373,2]
[381578631,1756289446182,-500.73617161,0.00022373,2]
[381578633,1756289446192,-500.0,0.00022373,2]
[381578635,1756289446201,-504.0734374,0.00022373,2]
[381578637,1756289446210,-500.0,0.00022373,2]
[381578639,1756289446220,-501.23549011,0.00022373,2]
[381578641,1756289446229,-503.04231537,0.00022373,2]
[381578643,1756289446238,-504.55326767,0.00022373,2]
[381578645,1756289446247,-500.0,0.00022373,2]
[381578647,1756289446257,-500.0,0.00022373,2]
[381578649,1756289446266,-500.99581644,0.00022373,2]
[381578651,1756289446275,-500.0,0.00022373,2]
[381578653,1756289446285,-500.0,0.00022373,2]
[381578655,1756289446295,-500.0,0.00022373,2]
[381578657,1756289446305,-500.0,0.00022373,2]
[381578659,1756289446317,-500.0,0.00022373,2]
[381578661,1756289446326,-502.8241067,0.00022373,2]
[381578663,1756289446336,-500.0,0.00022373,2]
[381578665,1756289446346,-580.57302043,0.00022373,2]
[381578667,1756289446356,-512.5397822,0.00022373,2]
[381578669,1756289446367,-300.0,0.00022389,2]
[381578671,1756289446377,-300.0,0.00022389,2]
[381578673,1756289446388,-8404.79,0.00022399,2]
[381578675,1756289446398,-1727.42,0.00022399,2]
[381578677,1756289446407,-7813.59,0.00022399,2]
[381578679,1756289446416,-500.0,0.000224,2]
[381578681,1756289446426,-500.0,0.000224,2]
[381578683,1756289446436,-1254.55664192,0.00022407,2]
[381578685,1756289446445,-1557.24,0.00022437,2]
[381578687,1756289446455,-1557.24,0.00022438,2]
[381578689,1756289446464,-1557.24,0.00022438,2]
[381578691,1756289446474,-1557.24,0.00022438,2]
[381578693,1756289446484,-151.0,0.000225,9]
[381578695,1756289446493,-300.0,0.00022535,20]
[381578697,1756289446502,-300.0,0.00022535,20]
[381578699,1756289446512,-300.0,0.00022535,20]
[381578701,1756289446522,-300.0,0.00022535,20]
[381578703,1756289446531,-300.0,0.00022535,20]
[381578705,1756289446540,-300.0,0.00022535,20]
[381578707,1756289446549,-300.0,0.00022535,20]
[381578709,1756289446559,-300.0,0.00022535,20]
[381578711,1756289446568,-300.0,0.00022535,20]
[381578713,1756289446578,-300.0,0.00022535,20]
[381578715,1756289446587,-300.0,0.00022535,20]
[381578717,1756289446597,-300.0,0.00022535,20]
[381578719,1756289446606,-300.0,0.00022535,20]
[381578721,1756289446615,-300.0,0.00022535,20]
[381578723,1756289446624,-300.0,0.00022535,20]
[381578725,1756289446634,-600.0,0.00022536,20]
[381578727,1756289446643,-151.0,0.000226,8]
[381578729,1756289446652,-151.0,0.000226,7]
[381578731,1756289446661,-2330.74,0.00022608,2]
[381578733,1756289446671,-480.0,0.00022608,2]
[381578735,1756289446680,-480.0,0.00022608,2]
[381578737,1756289446689,-480.0,0.00022608,2]
[381578739,1756289446699,-480.0,0.00022608,2]
[381578741,1756289446708,-480.0,0.00022608,2]
[381578743,1756289446718,-480.0,0.00022608,2]
[381578745,1756289446727,-603.02,0.00022608,2]
[381578747,1756289446736,-1386.14,0.00022608,2]
[381578749,1756289446745,-480.0,0.00022608,2]
[381578751,1756289446754,-791.53,0.00022608,2]
[381578753,1756289446764,-480.0,0.00022608,2]
[381578755,1756289446773,-584.49,0.00022608,2]
[381578757,1756289446782,-508.29447791,0.00022608,2]
[381578759,1756289446791,-480.0,0.00022608,2]
[381578761,1756289446800,-527.14,0.00022608,2]
[381578763,1756289446810,-648.14,0.00022608,2]
[381578764,1756289446819,-480.0,0.00022608,2]
[381578766,1756289446828,-480.0,0.00022609,2]
[381578768,1756289446837,-480.0,0.00022609,2]
[381578770,1756289446847,-480.0,0.00022609,2]
[381578772,1756289446856,-983.33,0.00022609,2]
[381578774,1756289446865,-820.53,0.00022609,2]
[381578776,1756289446875,-480.0,0.00022609,2]
[381578778,1756289446886,-513.07,0.00022609,2]
[381578780,1756289446895,-480.0,0.00022609,2]
[381578782,1756289446904,-480.0,0.00022609,2]
[381578784,1756289446913,-502.54,0.00022609,2]
[381578786,1756289446923,-480.0,0.00022609,2]
[381578788,1756289446932,-480.0,0.00022609,2]
[381578790,1756289446942,-480.0,0.00022609,2]
[381578792,1756289446952,-480.0,0.00022609,2]
[381578794,1756289446962,-588.27,0.00022609,2]
[381578796,1756289446971,-480.0,0.00022609,2]
[381578798,1756289446981,-669.17,0.00022609,2]
[381578800,1756289446990,-480.0,0.00022609,2]
[381578802,1756289446999,-480.0,0.00022609,2]
[381578804,1756289447008,-480.0,0.00022609,2]
[381578806,1756289447018,-594.95,0.00022609,2]
[381578808,1756289447027,-480.0,0.00022609,2]
[381578810,1756289447036,-480.0,0.00022609,2]
[381578812,1756289447045,-710.48,0.00022609,2]
[381578814,1756289447055,-480.0,0.00022609,2]
[381578816,1756289447065,-480.0,0.00022609,2]
[381578818,1756289447077,-480.0,0.00022609,2]
[381578820,1756289447086,-480.0,0.00022609,2]
[381578822,1756289447095,-560.13,0.00022609,2]
[381578824,1756289447104,-1415.64,0.00022609,2]
[381578826,1756289447114,-480.0,0.00022609,2]
[381578828,1756289447123,-491.88634379,0.00022609,2]
[381578830,1756289447133,-480.0,0.00022609,2]
[381578832,1756289447142,-480.0,0.00022609,2]
[381578834,1756289447152,-480.0,0.00022609,2]
[381578836,1756289447161,-630.78,0.00022609,2]
[381578838,1756289447170,-480.0,0.00022609,2]
[381578840,1756289447180,-578.01,0.00022609,2]
[381578842,1756289447189,-815.75,0.00022609,2]
[381578844,1756289447199,-743.87,0.00022609,2]
[381578846,1756289447208,-480.0,0.00022609,2]
[381578848,1756289447217,-480.0,0.00022609,2]
[381578849,1756289447227,-480.0,0.00022609,2]
[381578851,1756289447237,-1254.55664192,0.00022613,2]
[381578853,1756289447246,-480.0,0.00022632,2]
[381578855,1756289447255,-480.0,0.00022632,2]
[381578857,1756289447264,-480.0,0.00022636,2]
[381578859,1756289447273,-731.92,0.00022636,2]
[381578861,1756289447283,-1069.75,0.00022636,2]
[381578863,1756289447292,-1626.41,0.00022636,2]
[381578865,1756289447302,-669.83,0.00022636,2]
[381578867,1756289447311,-480.0,0.00022636,2]
[381578869,1756289447321,-480.0,0.00022636,2]
[381578871,1756289447331,-679.13,0.00022638,2]
[381578873,1756289447340,-765.23,0.00022638,2]
[381578875,1756289447350,-480.0,0.00022638,2]
[381578877,1756289447360,-480.0,0.00022638,2]
[381578879,1756289447369,-376.92633765,0.00022638,2]
[381578881,1756289447379,-1872.79,0.00022638,2]
[381578883,1756289447388,-3317.95,0.00022638,2]
[381578885,1756289447398,-572.11,0.00022638,2]
[381578887,1756289447407,-480.0,0.00022638,2]
[381578889,1756289447416,-946.94,0.00022638,2]
[381578891,1756289447425,-480.0,0.00022638,2]
[381578893,1756289447434,-589.41,0.00022638,2]
[381578895,1756289447444,-559.85,0.00022638,2]
[381578897,1756289447452,-480.0,0.00022639,2]
[381578899,1756289447462,-480.0,0.00022639,2]
[381578901,1756289447471,-480.0,0.00022639,2]
[381578903,1756289447480,-480.0,0.00022639,2]
[381578905,1756289447490,-480.0,0.00022639,2]
[381578907,1756289447499,-480.0,0.00022639,2]
[381578909,1756289447509,-480.0,0.00022639,2]
[381578911,1756289447519,-604.6963528,0.00022639,2]
[381578913,1756289447528,-480.0,0.00022639,2]
[381578915,1756289447537,-480.0,0.00022639,2]
[381578917,1756289447547,-480.0,0.00022639,2]
[381578919,1756289447557,-480.0,0.00022639,2]
[381578921,1756289447566,-480.0,0.00022639,2]
[381578923,1756289447576,-480.0,0.00022639,2]
[381578925,1756289447585,-480.0,0.00022639,2]
[381578927,1756289447595,-480.0,0.00022639,2]
[381578929,1756289447603,-209.18140375,0.00022639,2]
[381578931,1756289447613,-480.0,0.00022639,2]
[381578933,1756289447622,-889.28,0.00022639,2]
[381578935,1756289447631,-480.0,0.00022639,2]
[381578937,1756289447640,-480.0,0.00022639,2]
[381578939,1756289447649,-480.0,0.00022639,2]
[381578941,1756289447659,-480.0,0.00022639,2]
[381578943,1756289447668,-2423.54,0.00022639,2]
[381578945,1756289447677,-480.0,0.00022639,2]
[381578947,1756289447686,-480.0,0.00022639,2]
[381578949,1756289447695,-480.0,0.00022639,2]
[381578951,1756289447704,-1010.26,0.00022639,2]
[381578953,1756289447714,-815.03,0.00022639,2]
[381578955,1756289447723,-1044.63,0.00022639,2]
[381578957,1756289447732,-480.0,0.00022639,2]
[381578959,1756289447743,-480.0,0.00022639,2]
[381578961,1756289447752,-480.0,0.00022639,2]
[381578963,1756289447761,-480.0,0.00022639,2]
[381578965,1756289447770,-480.0,0.00022639,2]
[381578967,1756289447779,-730.74,0.00022639,2]